Cogmind - Beta 14 @@@ ROGUE MODE // 2025.03.01 @ 20:44:30 Player: silmarilion6 Result: Destroyed by S-10 Pest with Light Assault Rifle Performance ------------- Evolutions (0) 0 Regions Visited (1) 200 Robots Destroyed (15) 75 Value Destroyed (405) 405 Prototype IDs (0) 0 Alien Tech Used (0) 0 Bonus (0) 0 TOTAL SCORE: 680 Bonus ------- None Cogmind --------- Core Integrity 0/250 Matter 117/300 Energy 100/100 System Corruption 0% Temperature Cool (0) Movement Rolling (180) Ox6 Location -10/Materials Parts ------- > --- POWER (1) -------- (None) > --- PROPULSION (2) --- Armored Wheel > --- UTILITY (2) ------ Huge Storage Unit Sensor Array > --- WEAPON (2) ------- (None) > --- INVENTORY (25) --- Ion Engine Aluminum Leg Aluminum Leg Wheel Armored Wheel Armored Wheel Armored Wheel Disposable Heat Sink Disposable Heat Sink Small Storage Unit Huge Storage Unit High-capacity Battery (250) Large Matter Pod (0) Large Matter Pod (0) Large Matter Pod (0) Large Matter Pod (0) Weapon Shielding Hacking Suite Improved Light Cannon Improved Light Cannon Improved Light Cannon Improved Light Cannon Rocket Launcher Rocket Launcher Rocket Launcher Peak State ------------ > --- POWER ------------ Light Ion Engine > --- PROPULSION ------- Wheel Armored Wheel > --- UTILITY ---------- Huge Storage Unit Sensor Array > --- WEAPON ----------- Light Assault Rifle Rocket Launcher > --- INVENTORY -------- Ion Engine Aluminum Leg Aluminum Leg Wheel Armored Wheel Armored Wheel Armored Wheel Disposable Heat Sink Disposable Heat Sink Small Storage Unit Huge Storage Unit High-capacity Battery Large Matter Pod Large Matter Pod Large Matter Pod Large Matter Pod Weapon Shielding Hacking Suite Improved Light Cannon Improved Light Cannon Improved Light Cannon Improved Light Cannon Rocket Launcher Rocket Launcher Rocket Launcher [Rating: 12] Favorites ----------- Power Light Ion Engine Engine Light Ion Engine Propulsion Wheel Treads Light Treads Leg Aluminum Leg Wheel Wheel Utility Sensor Array Device Sensor Array Storage Huge Storage Unit Weapon Light Assault Rifle Energy Gun EM Pulse Gun Ballistic Gun Light Assault Rifle Launcher Grenade Launcher Build | -11 -10 ------- Run | Yrd Mat Slots Evolved . | . . Power . | . . Propulsion . | . . Utility . | . . Weapon . | . . Parts Attached 16 | 10 6 Power 1 | 1 . Engine 1 | 1 . Core . | . . Reactor . | . . Propulsion 7 | 6 1 Treads 2 | 2 . Leg 2 | 2 . Wheel 3 | 2 1 Hover . | . . Flight . | . . Utility 3 | 1 2 Device 1 | . 1 Storage 2 | 1 1 Processor . | . . Hackware . | . . Protection . | . . Artifact . | . . Weapon 5 | 2 3 Energy Gun 1 | 1 . Energy Cannon . | . . Ballistic Gun 2 | 1 1 Ballistic Cannon . | . . Launcher 2 | . 2 Special Weapon . | . . Impact Weapon . | . . Slashing Weapon . | . . Piercing Weapon . | . . Special Melee Weapon . | . . Unidentified Prototypes . | . . Parts Lost 6 | . 6 Power 1 | . 1 Propulsion 1 | . 1 Utility . | . . Weapon 4 | . 4 Highest Loss Streak 4 | . 4 To Critical Strikes 1 | . 1 Average Slot Usage (%) 96 | . 96 Engine 13 | . 13 Wheel 27 | . 27 Device 12 | . 12 Storage 14 | . 14 Energy Gun 2 | . 2 Ballistic Gun 10 | . 10 Launcher 13 | . 13 Peak Build Rating 12 | 6 12 Average Rating 8 | 3 8 On Entrance 3 | . 6 Naked Turns . | . . Heaviest Build 89 | 12 89 Greatest Support 40 | 40 22 Greatest Overweight (x) 7 | . 7 Average Overweight (x) 1 | . 1 Largest Inventory Capacity 25 | 8 25 Average Capacity 16 | 6 17 Most Carried 25 | 7 25 Average Carried 13 | 4 14 Final Capacity 25 | 8 25 Final Carried 25 | 6 25 Class Distribution -------------------- 100% | Mutant Dominant Class ---------------- Mutant | -10/Materials Resources | -11 -10 ----------- Run | Yrd Mat Matter Collected 301 | 235 66 Remotely . | . . Salvage Created 348 | . 348 Parts 24 | . 24 Haulers Intercepted . | . . Recyclers Shooed 1 | . 1 Parts Field Recycled . | . . Retrieved Matter . | . . Parts Self-Destructed . | . . Prevented . | . . Kills | -11 -10 ------- Run | Yrd Mat Combat Hostiles Destroyed 9 | . 9 Guns 2 | . 2 AOE 7 | . 7 Classes Destroyed 6 | . 6 Worker 1 | . 1 Builder 1 | . 1 Recycler 1 | . 1 Operator 1 | . 1 Watcher 2 | . 2 Grunt 9 | . 9 Best Kill Streak 12 | . 12 Combat Bots Only 6 | . 6 Max Kills in Single Turn 3 | . 3 Gunslinging . | . . Exploded 2 | . 2 Melee . | . . Uniques/NPCs Destroyed . | . . Combat | -11 -10 -------- Run | Yrd Mat Hostile Shots Fired 73 | . 73 Missed 12 | . 12 Damage Taken 733 | . 733 Core 253 | . 253 Absorbed by Shields . | . . Core Remaining (%) 100 | 100 . Volleys Fired 24 | . 24 Largest 2 | . 2 Hottest 70 | . 70 Shots Fired 35 | . 35 Gun 18 | . 18 Cannon . | . . Launcher 17 | . 17 Special . | . . Kinetic 11 | . 11 Thermal . | . . Explosive 17 | . 17 Electromagnetic 7 | . 7 Robot Hit Streak 8 | . 8 Robot Miss Streak 4 | . 4 Penetration Max . | . . Secondary Targets . | . . Shots Hit Robots 18 | . 18 Core Hits 26 | . 26 Critical Kills . | . . Critical Parts Destroyed . | . . Critical Strikes . | . . Melee Attacks . | . . Impact . | . . Slashing . | . . Piercing . | . . Sneak Attacks . | . . Combat Hostiles . | . . Follow-up Attacks . | . . Damage Inflicted 918 | . 918 Guns 96 | . 96 Cannons . | . . Explosions 816 | . 816 Melee . | . . Ramming 6 | . 6 Kinetic 43 | . 43 Thermal . | . . Explosive 816 | . 816 Electromagnetic 53 | . 53 Impact . | . . Slashing . | . . Piercing . | . . Highest Corruption . | . . Average Corruption . | . . Corruption Purged . | . . Corruption Blocked . | . . Overload Shots . | . . Overflow Damage 12 | . 12 Projectiles . | . . Explosions 12 | . 12 Melee . | . . Knockbacks . | . . Impact . | . . Kinetic . | . . Secondary . | . . Self-Inflicted Damage 39 | . 39 Shots 2 | . 2 Rammed 1 | . 1 Targets Rammed 1 | . 1 Kicked . | . . Crushed . | . . Highest Temperature 89 | . 89 Average Temperature 29 | . 29 Received Heat Transfer 198 | . 198 Siege Activations . | . . Robots Corrupted . | . . Combat Hostiles . | . . Parts Fried . | . . Impact Corruptions . | . . Robots Melted . | . . Combat Hostiles . | . . Parts Melted . | . . Heat Transferred . | . . Parts Sabotaged . | . . Parts Stolen . | . . Parts Stripped . | . . Power Chain Reactions . | . . Alert | -11 -10 ------- Run | Yrd Mat Peak Influence 238 | . 238 Initial . | . . Average 127 | . 139 Maximum Alert Level 1 | . 1 Low Security (%) 65 | 100 61 Level 1 34 | . 38 Level 2 . | . . Level 3 . | . . Level 4 . | . . Level 5 . | . . High Security . | . . Max Security . | . . Squads Dispatched 2 | . 2 Investigation 1 | . 1 Extermination . | . . Reinforcement 1 | . 1 Assault . | . . Garrison . | . . Intercept . | . . Searches Triggered . | . . Construction Impeded . | . . Haulers Reinforced . | . . Active Scanning Responses . | . . Cargo Convoy Interrupts . | . . Stealth | -11 -10 --------- Run | Yrd Mat Distress Signals 1 | . 1 Communications Jammed . | . . Distress Signals . | . . Times Spotted 20 | . 20 Peak Tracking Total 7 | . 7 Tactical Retreats 2 | . 2 Traps | -11 -10 ------- Run | Yrd Mat Traps Triggered 1 | . 1 Indirectly . | . . Trap Hack Attempts . | . . Triggered . | . . Disarmed . | . . Reprogrammed . | . . Reused . | . . Traps Extracted . | . . Installed . | . . Triggered . | . . Machines | -11 -10 ---------- Run | Yrd Mat Machines Disabled . | . . Max in Single Turn . | . . Machines Repaired . | . . Machines Dismantled . | . . Machines Sabotaged . | . . Overloaded Fab Kills . | . . Hacking | -11 -10 --------- Run | Yrd Mat Machines Accessed 3 | . 3 Terminals 2 | . 2 Fabricators . | . . Repair Stations . | . . Recycling Units 1 | . 1 Scanalyzers . | . . Garrison Access . | . . Total Hacks 5 | . 5 Successful 4 | . 4 Failed 1 | . 1 Catastrophic . | . . Database Lockouts . | . . Manual . | . . Terminals 3 | . 3 Fabricators . | . . Repair Stations . | . . Recycling Units 2 | . 2 Scanalyzers . | . . Garrison Access . | . . Terminal Hacks 2 | . 2 Emergency Access Points 1 | . 1 Locate Traps 1 | . 1 Fabricator Hacks . | . . Repair Station Hacks . | . . Recycling Unit Hacks 2 | . 2 Process 1 | . 1 Retrieve Matter 1 | . 1 Scanalyzer . | . . Garrison Access Hacks . | . . Unauthorized Hacks . | . . Terminals . | . . Fabricators . | . . Repair Stations . | . . Recycling Units . | . . Scanalyzers . | . . Garrison Access . | . . Data Cores Recovered 1 | . 1 Used . | . . Hacking Detections 2 | . 2 Full Trace Events . | . . Feedback Events . | . . Feedback Blocked . | . . Robot Schematics Acquired . | . . Robots Built . | . . Authchips . | . . Time . | . . Total Robot Build Rating . | . . Part Schematics Acquired . | . . Parts Built . | . . Authchips . | . . Time . | . . Total Part Build Rating . | . . Parts Repaired . | . . Time . | . . Parts Recycled . | . . Recycled Matter 29 | . 29 Retrieved Matter 29 | . 29 Retrieved Components . | . . Parts Scanalyzed . | . . Part Schematics Acquired . | . . Parts Damaged . | . . Bothacking | -11 -10 ------------ Run | Yrd Mat Used RIF Installer . | . . Robots Hacked . | . . Non-combat . | . . Combat . | . . Robot Hacks Applied . | . . Relay Couplers Released . | . . Fabnet Peak Effective % . | . . Robots Rewired . | . . Allies Hacked . | . . Hacks Repelled . | . . Allies | -11 -10 -------- Run | Yrd Mat Total Allies . | . . Largest Group . | . . Highest-Rated Group . | . . Highest-Rated Ally . | . . Total Orders . | . . Ally Attacks . | . . Total Damage . | . . Kills . | . . Allies Corrupted . | . . Allies Melted . | . . Intel | -11 -10 ------- Run | Yrd Mat Robot Analysis Total . | . . Derelict Logs Recovered . | . . Drone Launches . | . . Drone Recoveries . | . . Exploration | -11 -10 ------------- Run | Yrd Mat Turns Passed 736 | 67 669 Spaces Moved 591 | 48 543 Core 12 | 12 . Treads 13 | 13 . Legs . | . . Wheels 566 | 23 543 Hover . | . . Flight . | . . Fastest Speed 50 | 50 80 Average Speed 104 | 94 105 Slowest Speed 195 | 160 195 Overloaded Moves . | . . Propulsion Burnouts . | . . Robots Hopped . | . . Cave-ins Triggered . | . . Exploration Rate (%) 36 | 4 69 Regions Visited 1 Branch Regions . Pre-discovered Areas . | . . Known Exits Taken . | . . Unknown Exits Taken 1 | 1 . Scrap Searched . | . . Spaces Dug . | . . Terrain Destroyed 146 | . 146 Melee . | . . Projectile . | . . AOE 146 | . 146 Terrain Rammed . | . . Walls Destroyed . | . . Machines Disabled . | . . Actions | -11 -10 --------- Run | Yrd Mat Total 678 | 67 611 Wait . | . . Move 590 | 47 543 Hop . | . . Pick Up 38 | 9 29 Fast Attach 3 | 3 . Attach 7 | 4 3 Detach 1 | 1 . Swap 6 | 3 3 Drop 8 | . 8 Fire 24 | . 24 Melee . | . . Ram 1 | . 1 Kick . | . . Crush . | . . Escape Stasis . | . . Rewire . | . . Trap . | . . Miscellaneous . | . . Route ------- -11/Scrapyard -10/Materials (discovered 3 exits: [*Mat x2] / [*Sub]) History --------- Turn | Location | Event 11 | -11/Scrapyard | Discovered new exit (range 16) 68 | -11/Scrapyard | Entered Materials 260 | -10/Materials | Discovered new exit (range 15) 316 | -10/Materials | Build established: Mutant 634 | -10/Materials | Discovered new exit (range 9) 668 | -10/Materials | Derelicts attacked the area 718 | -10/Materials | Core integrity fell below 50% 731 | -10/Materials | Core integrity fell below 20% 732 | -10/Materials | Discovered new exit (range 11) 737 | -10/Materials | Destroyed by S-10 Pest with Light Assault Rifle Last Messages --------------- 00571_ R-06 Scavenger collects Aluminum Leg. 00572_ Acquired 16 matter. 00576_ Acquired 28 matter. 00588_ The unstable cave ceiling collapses. 00634_ EXIT=FOUND 00650_ Slammed into A-02 Transporter. 00668_ ALERT: Derelict incursion detected, dispatching patrols to target area. 00676_ G-34 Mercenary destroyed. 00689_ Acquired 17 matter. 00699_ The unstable cave ceiling collapses. 00704_ Acquired Arm. Wheel. 00711_ Dropped Wheel. 00715_ Rocket Launcher destroyed. 00720_ Wheel destroyed. 00723_ The unstable cave ceiling collapses. 00727_ Lgt. Ion Engine destroyed. 00730_ Critical hit (Destroy). 00730_ Lgt. Assault Rifle destroyed. 00732_ EXIT=FOUND Map ----- +----------------------------------------------------+ | #??????????????? ##+####### #???? | | #?????????????? #???? | | ??######??????? ##??? | | ### ##?????? #??? | | # ##?????? ######### #??? | | T## ####### ##????## ! #??? | | #????# # ##?? | | #????# #?? | | %= #????# #?? | | # "###### == #????# ##?? | | #??? %= #????# # #?? | | # """ #???# ##??##### #?? | | # """ #???# #???#== ?? ###?? | | "" # """ #???# #???#== #???? | | """ # #???# ##??#]] #???? | | """ # """ #???# T#??#]] ##???? | | """ + """ #???# ##??# ##???? | | "" # """ #???# #???# = #????? | | # #???# #???##### #????? | | ####+## = #???# ######### #????? | | ???# ## =#???# s #????? | | #### ## #???# #### s #????? | | #########??# #??# #????? | | #### T #####+##### s###+"#????? | | + ## # # ????? | | ## # ## # @ # #??? | | # # ## # # """ #??? | | # + ## # + """ #??? | | # #### ## # # """ #??? | | # #??# ##"" = # # !#??? | | # #??# ##"Y # ########??? | | # #??# ##"" # #?????????? | | #####??####### # #?????????? | | ##????????????########## < #?????????? | | ???????????????????????# #?????????? | | ???????????????????????#####?????????? | | ?????????????????????????????????????? | | ?????????????????????????????????????? | | ?????????????????????????????????????? | | ?????????????????????????????????????? | | ?????????????????????????????????????? | | ?????????????????????????????????????? | | | | | | | | | | | | | | | | | +----------------------------------------------------+ Best States ------------- Heat Dissipation 25 Energy Generation 10 Energy Capacity 125 Matter Stores 244 Matter Capacity 300 Sight Range 16 Robot Scan Range 14 Terrain Scan Density 10 Evasion (%) 50 Recoil Reduction 2 Item Schematics ----------------- None Robot Schematics ------------------ None Fabricated ------------ Nothing Alien Tech Used ----------------- None Achievements -------------- None Challenges ------------ None Game ------ Seed InsulationThiefMachine Manual? 0 Play Time 00:13:51 Cumulative 17.4 hours Start 2025.03.01 @ 20:14:43 End 2025.03.01 @ 20:44:30 Sessions 2 Manual Loads 0 Difficulty Rogue Special Mode None Game No. 23 Rogue 23 Adventurer 0 Explorer 0 Win Type - Total 0 Types 0/0/0/0/0/0/0/0/0 Lore% 11 Gallery% 16 Achievement% 16 Wizard Run 0 Options --------- Layout 2 ASCII 0 Keyboard 0 Movement Mouse Keybinds 0 Fullscreen 2 Font 24/Swanston Map View 50x44 Zoom Use 0% Tactical HUD 1 Map Filters NONE Filters NONE Steam 1 RUN: 0e6fea97-2e4d-4b57-9de2-b98086e58ccc